[Event "44th Chess Olympiad Open 2022"]
[Site "Chennai"]
[Date "2022.08.06"]
[Round "8.26"]
[White "Escalona Landi, Samid Eduardo"]
[Black "Gelashvili, Tamaz"]
[Result "0-1"]
[WhiteElo "2191"]
[BlackElo "2549"]
[Annotator "TA"]
[PlyCount "136"]
[EventDate "2022.??.??"]
[TimeControl "60"]

{[%evp 19,136,24,24,10,13,0,9,10,18,12,28,0,0,0,0,0,0,0,0,0,0,0,0,0,0,0,0,0,0,
0,0,0,0,0,0,0,0,0,0,0,0,-25,0,-47,-52,-61,-40,-95,-48,-189,-168,-178,-176,-159,
-73,-133,-64,-51,-50,-47,-51,-120,-127,-126,-122,-215,-206,-195,-184,-166,-158,
-179,-145,-280,-172,-172,-126,-195,-170,-169,-156,-180,-166,-179,-181,-181,
-181,-168,-169,-169,-165,-163,-164,-286,-250,-260,-304,-331,-293,-390,-359,
-560,-474,-738,-556,-728,-478,-429,-413,-1102,-1012,-1101,-1026,-877,-772,
-5107,-5097,-4134,-3157]} 1. Nf3 {[%emt 0:00:26]} c5 {[%emt 0:00:27]} 2. c4 {
[%emt 0:00:16]} Nc6 {[%emt 0:00:36]} 3. g3 {[%emt 0:00:04]} g6 {[%emt 0:00:19]}
4. Bg2 {[%emt 0:00:05]} Bg7 {[%emt 0:00:06]} 5. Nc3 {[%emt 0:00:12]} Nh6 {
[%emt 0:01:14]} 6. a3 {[%emt 0:00:21]} a5 {[%emt 0:00:07]} 7. d3 {[%emt 0:00:
00]} Nf5 {[%emt 0:00:12]} 8. O-O {[%emt 0:00:08]} O-O {[%emt 0:00:17]} 9. Bd2 {
[%emt 0:01:42]} d6 {[%emt 0:04:11]} 10. Rb1 {[%emt 0:00:16]} Bd7 {[%emt 0:00:
00]} 11. Ne1 {[%emt 0:00:35] A37: Symmetrical English vs ...g6:4 Bg2 Bg7 5 Nf3.
} Rb8 {[%emt 0:25:03]} 12. Nc2 {[%emt 0:00:25]} Nfd4 {[%emt 0:01:29]} 13. Nxd4
{[%emt 0:00:40] The position is equal.} cxd4 {[%emt 0:02:04]} 14. Nb5 {[%emt 0:
00:16]} Qc8 {[%emt 0:00:27]} 15. b4 {[%emt 0:08:07]} axb4 {[%emt 0:00:00]} 16.
axb4 {[%emt 0:00:05]} Bh3 {[%emt 0:00:11] [#]} 17. Ra1 $146 {[%emt 0:00:00]} ({
Predecessor:} 17. Na3 Ne5 18. Qb3 h5 19. Rfc1 b6 20. Bd5 h4 21. Qd1 Qf5 22. Bg2
Bxg2 23. Kxg2 {0-1 (46) Valdes Romero,L (2338)-Chatalbashev,B (2499) Saint
Vincent 2001}) 17... Bxg2 {[%emt 0:06:37]} 18. Kxg2 {[%emt 0:00:00]} Qd7 {
[%emt 0:00:50]} 19. Qb3 {[%emt 0:01:16]} h5 {[%emt 0:00:33][%cal Yh7h5,Yh5h4,
Yh4h3]} 20. Na3 {[%emt 0:06:57]} h4 {[%emt 0:03:54]} 21. b5 {[%emt 0:00:13]}
h3+ {[%emt 0:00:13]} 22. Kg1 {[%emt 0:00:15]} Nd8 {[%emt 0:00:00][%cal Yc6d8,
Yd8e6,Ye6c5]} 23. Nc2 {[%emt 0:00:46]} Ne6 {[%emt 0:00:00][%cal Yd6d5]} 24. Nb4
{[%emt 0:00:57]} Nc5 {[%emt 0:00:25]} 25. Qc2 {[%emt 0:00:24]} e6 {[%emt 0:00:
51]} 26. Ra7 {[%emt 0:00:55]} Qd8 {[%emt 0:00:00]} 27. Rfa1 {[%emt 0:02:50]} f5
{[%emt 0:00:00]} 28. f3 {[%emt 0:04:20]} g5 {[%emt 0:02:58]} 29. Rf1 {[%emt 0:
02:05]} g4 {[%emt 0:02:14]} 30. f4 {[%emt 0:00:00]} Re8 {[%emt 0:03:53]} 31.
Raa1 {[%emt 0:00:35]} (31. Rfa1 $11) 31... Rc8 $15 {[%emt 0:00:35]} 32. Qa2 {
[%emt 0:00:36]} Qd7 {[%emt 0:01:55]} 33. Rf2 {[%emt 0:00:25]} (33. Rfb1 $15)
33... Bf6 {[%emt 0:00:46]} (33... Kh7 $17) 34. Bc1 {[%emt 0:08:12]} (34. Rff1
$15) 34... Kh7 {[%emt 0:02:07][%cal Yc8a8]} 35. Bd2 {[%emt 0:02:09]} Kg6 {
[%emt 0:00:11]} 36. Rff1 {[%emt 0:00:58]} Qg7 {[%emt 0:02:21]} (36... d5 $142
$1 {[%cal Rd5c4] Threatens to win with ...dxc4.} 37. cxd5 exd5) 37. Be1 {
[%emt 0:02:03]} (37. Rfc1 $142) 37... Bd8 {[%emt 0:00:00] Black is more active.
} (37... Qe7 $1 $17 {[%cal Yd6d5]} 38. Bf2 d5 39. cxd5 e5 40. fxe5 Qxe5) 38.
Bf2 {[%emt 0:00:11]} Bb6 {[%emt 0:01:06]} 39. Qb2 {[%emt 0:01:08]} Nd7 {
[%emt 0:02:14]} 40. Rfe1 {[%emt 0:09:09]} ({Better is} 40. Rae1 $15) 40... Bc5
$17 {[%emt 0:08:49]} 41. Nc2 {[%emt 0:33:10]} e5 {[%emt 0:00:00]} 42. e3 {
[%emt 0:00:23]} (42. fxe5 $17 dxe5 43. Rf1) 42... dxe3 $19 {[%emt 0:02:33]} 43.
Bxe3 {[%emt 0:00:07]} exf4 {[%emt 0:06:56]} 44. Qxg7+ {[%emt 0:00:06]} Kxg7 {
[%emt 0:00:05]} 45. gxf4 {[%emt 0:00:07]} Kg6 {[%emt 0:00:00]} 46. Kf2 {
[%emt 0:04:43]} (46. Bf2 $17 {was called for.}) 46... Bxe3+ {[%emt 0:00:16]}
47. Rxe3 {[%emt 0:00:05]} Nc5 {[%emt 0:00:11]} 48. Nd4 {[%emt 0:06:25]} (48.
Rxe8 $17 {might work better.} Rxe8 49. Nb4) 48... Ra8 {[%emt 0:01:14]} 49. Rxe8
{[%emt 0:01:02]} Rxe8 {[%emt 0:05:07] Endgame KRN-KRN} 50. Ra3 {[%emt 0:00:18]}
Kf6 {[%emt 0:07:28]} 51. Ne2 {[%emt 0:01:48] [#]} d5 $1 {[%emt 0:03:40]} 52.
cxd5 {[%emt 0:01:02]} Rd8 {[%emt 0:00:11]} 53. Ke3 {[%emt 0:09:38]} Rxd5 {
[%emt 0:00:36]} 54. Rc3 {[%emt 0:02:02]} Ne6 {[%emt 0:03:02]} 55. Rb3 {[%emt 0:
00:03]} Rc5 {[%emt 0:00:00] And now ...Rc2 would win.} 56. Rb2 {[%emt 0:00:00]
Inhibits Rc2.} (56. Kd2 {was necessary.}) 56... b6 {[%emt 0:00:00]} 57. d4 {
[%emt 0:00:00]} Rc4 {[%emt 0:00:00]} 58. Kd3 {[%emt 0:00:00]} Ra4 {[%emt 0:00:
00]} 59. Rc2 {[%emt 0:00:00]} Ra3+ {[%emt 0:00:00]} ({Not} 59... g3 60. hxg3
Ra1 61. Nc3 $11) 60. Rc3 {[%emt 0:00:00]} (60. Kd2 {was the only defense.} Rb3
61. Rc8) 60... Rxc3+ {[%emt 0:00:00]} 61. Kxc3 {[%emt 0:00:00] KN-KN} Nc7 {
[%emt 0:00:00]} 62. Kc4 {[%emt 0:00:00]} Ke7 {[%emt 0:00:00]} 63. d5 {[%emt 0:
00:00] [#]} Ne8 $1 {[%emt 0:01:26] aiming for ...Nd6+.} 64. Ng3 {[%emt 0:00:00]
} (64. Kd4 $142 Kf6 65. Ng3) 64... Nd6+ {[%emt 0:00:00] Black is clearly
winning.} 65. Kb4 {[%emt 0:00:00]} Kd7 {[%emt 0:00:00]} 66. Kb3 {[%emt 0:00:00]
} Ne4 {[%emt 0:00:00] ( -> ...Nxg3)} 67. Nf1 {[%emt 0:00:00]} g3 {[%emt 0:00:
00]} 68. hxg3 {[%emt 0:00:00] [#]} Nd2+ $1 {[%emt 0:00:00] Promotion. Weighted
Error Value: White=0.28 (precise) /Black=0.09 (flawless)} 0-1

[Event "44th Chess Olympiad Open 2022"]
[Site "Chennai"]
[Date "2022.08.06"]
[Round "8.27"]
[White "Grandelius, Nils"]
[Black "Bwalya, Gillan"]
[Result "1-0"]
[WhiteElo "2655"]
[BlackElo "2396"]
[Annotator "TA"]
[PlyCount "100"]
[EventDate "2022.??.??"]
[TimeControl "60"]

{[%evp 9,100,20,39,24,17,17,31,15,10,-3,7,16,12,12,7,0,0,0,18,18,12,22,17,12,
52,21,132,118,121,64,70,58,59,6,17,17,21,5,12,0,41,38,35,28,28,28,73,25,45,49,
39,22,24,24,21,16,24,24,24,24,23,23,22,22,92,85,54,75,70,47,1010,65,881,857,
783,795,744,0,0,0,0,0,0,0,0,0,0,0,29971,29972,29937,0,0]} 1. d4 {[%emt 0:00:19]
} Nf6 {[%emt 0:01:46]} 2. c4 {[%emt 0:05:08]} e6 {[%emt 0:00:56]} 3. g3 {
[%emt 0:00:42]} d5 {[%emt 0:01:32]} 4. Bg2 {[%emt 0:00:09]} dxc4 {[%emt 0:00:
00]} 5. Nf3 {[%emt 0:03:47]} Be7 {[%emt 0:06:45]} 6. Qa4+ {[%emt 0:03:42] E05:
Open Catalan: 5 Nf3 Be7.} c6 {[%emt 0:02:43]} 7. Qxc4 {[%emt 0:00:41]} b5 {
[%emt 0:00:43]} 8. Qd3 {[%emt 0:05:40] White is slightly better.} Nbd7 {
[%emt 0:04:46]} 9. Be3 {[%emt 0:03:29]} O-O {[%emt 0:04:15]} 10. O-O {[%emt 0:
00:00]} Nd5 {[%emt 0:18:49] [#]} 11. Nc3 $146 {[%emt 0:06:44]} ({Predecessor:} 
11. Nbd2 c5 12. dxc5 Nxe3 13. fxe3 Nxc5 14. Qxd8 Rxd8 15. Ne5 Bb7 16. Bxb7 Nxb7
17. Rxf7 {½-½ (62) Nozicka,V (2108)-Chalyi,Y (2099) ICCF email 2020}) 11...
a5 {[%emt 0:00:00]} 12. Rac1 {[%emt 0:14:45]} Ba6 {[%emt 0:00:57]} 13. Ne4 {
[%emt 0:06:14]} h6 {[%emt 0:10:04] Inhibits Neg5.} (13... b4 $5 {[%cal Ra6d3]}
14. Qd2 Bb5 $11) 14. Ne5 {[%emt 0:05:05]} ({Wrong is} 14. Rxc6 $2 Nb4 15. Rxa6
(15. Qc3 $2 Bb7 $19) 15... Nxd3 16. Rxa8 Qxa8 $19) 14... Nxe5 {[%emt 0:07:34]}
15. dxe5 {[%emt 0:00:09]} b4 {[%emt 0:01:47]} 16. Qd2 {[%emt 0:00:36]} Qc7 {
[%emt 0:01:46]} 17. Nd6 {[%emt 0:05:30]} Qd7 {[%emt 0:10:42]} (17... Bxd6 18.
exd6 Qd7 19. Bc5 $16) (17... f6 $11) 18. Bc5 $16 {[%emt 0:07:51]} f6 {[%emt 0:
00:00]} 19. Ne4 {[%emt 0:01:16] White is more active.} (19. f4 $16) 19... fxe5
$14 {[%emt 0:02:44]} 20. Bxe7 {[%emt 0:01:34]} Qxe7 {[%emt 0:00:07]} 21. Rxc6 {
[%emt 0:00:07]} (21. Nc5 $1 $14) 21... Rfd8 $11 {[%emt 0:02:29][%cal Yd5f4]}
22. Qc2 {[%emt 0:03:16]} Rac8 {[%emt 0:01:58]} 23. Rxc8 {[%emt 0:10:13]} Rxc8 {
[%emt 0:00:15]} 24. Qd2 {[%emt 0:00:02]} Rd8 {[%emt 0:00:43][%cal Yd5c3]} 25.
Bf3 {[%emt 0:05:00]} Nb6 {[%emt 0:02:50]} 26. Qc2 {[%emt 0:03:23]} Rc8 {
[%emt 0:01:06] Against Qc6} 27. Qb1 {[%emt 0:00:03]} Bb7 {[%emt 0:04:12] [#]}
28. Qd3 {[%emt 0:02:11]} (28. Nd6 $1 $16 Qxd6 29. Bxb7) 28... Bd5 {[%emt 0:00:
00]} 29. Qa6 {[%emt 0:02:33][%csl Ya5,Yb6]} Rb8 {[%emt 0:01:08]} 30. Qxa5 {
[%emt 0:03:45]} Nc4 {[%emt 0:00:20][%csl Ya5,Yb2]} 31. Qc5 {[%emt 0:00:15]} Qd7
{[%emt 0:02:23] White must now prevent ...Rb5.} 32. b3 {[%emt 0:00:57][%cal
Yb2b3,Yb3c4,Yc4d5,Yd5e6]} Rb5 {[%emt 0:00:55] [#]} 33. bxc4 $1 {[%emt 0:00:01]}
Rxc5 {[%emt 0:00:11]} 34. Nxc5 {[%emt 0:00:01]} Qd6 {[%emt 0:00:00] Hoping for
...Bxf3.} 35. cxd5 {[%emt 0:00:07]} Qxc5 {[%emt 0:00:26]} 36. dxe6 {[%emt 0:00:
21] Endgame Threatens to win with Rd1. KQ-KRB} Qc4 {[%emt 0:00:29]} (36... Qd6
$11 {remains equal.}) 37. Rd1 $16 {[%emt 0:00:39]} ({Of course not} 37. e7 Kf7
38. Rb1 Kxe7 $15) 37... Kf8 {[%emt 0:00:16]} 38. Bd5 $1 {[%emt 0:01:41]} Qxe2 {
[%emt 0:00:05]} 39. Bb3 {[%emt 0:00:04] And now Rd8+ would win.} g5 $2 {
[%emt 0:01:03]} (39... Ke8 $14) 40. h3 $2 {[%emt 0:01:00]} ({White has to play
} 40. Rd8+ $18 Ke7 41. Rd7+ Kf6 42. Rf7+ Kg6 43. e7 Qd1+ 44. Bxd1 Kxf7 45. Kg2)
40... e4 $2 {[%emt 0:01:11]} (40... Ke8 $14) 41. Rd8+ $18 {[%emt 0:06:35]} Kg7
{[%emt 0:01:51] [#]} 42. Rd7+ $1 {[%emt 0:00:00]} ({Weaker is} 42. e7 e3 43.
e8=N+ Kf8 44. Nc7+ Kg7 45. Ne8+ Kf8 46. Nc7+ Kg7 47. Rd7+ Kh8 $16) 42... Kf6 {
[%emt 0:03:32] [#]} 43. Rf7+ $2 {[%emt 0:00:52]} (43. e7 $1 $18 {[%cal Re7e8]}
e3 44. e8=N+ Kf5 45. g4+ Ke4 46. Re7+ Kd4 47. Rxe3) 43... Kg6 $1 $11 {[%emt 0:
05:02]} 44. Kg2 {[%emt 0:09:40]} e3 {[%emt 0:00:00]} 45. Rf3 {[%emt 0:02:27]}
exf2 {[%emt 0:00:00]} 46. Rxf2 {[%emt 0:00:04]} Qe4+ {[%emt 0:00:00]} 47. Kh2 {
[%emt 0:00:22] Threatening mate with Bc2.} Qe3 {[%emt 0:00:00]} 48. Bc2+ {
[%emt 0:00:32]} Kh5 $2 {[%emt 0:00:00]} (48... Kg7 $11 49. Rf7+ Kg8 50. Bh7+
Kh8) 49. Bd1+ {[%emt 0:00:00]} Kg6 {[%emt 0:00:03]} 50. Bc2+ $2 {[%emt 0:00:02]
} (50. Re2 {mates} Qf3 51. e7 Qxe2+ 52. Bxe2 Kf7 53. Kg2 Kxe7 54. Kf3 h5 55. h4
g4+ 56. Ke4) 50... Kg7 {Weighted Error Value: White=0.45/Black=0.29 (precise) .
Sensor Board Error (Ke4/e5)?} 1-0

[Event "44th Chess Olympiad Open 2022"]
[Site "Chennai"]
[Date "2022.08.06"]
[Round "8.27"]
[White "Westerberg, Jonathan"]
[Black "Phiri, Richmond"]
[Result "1-0"]
[WhiteElo "2476"]
[BlackElo "2293"]
[Annotator "TA"]
[PlyCount "77"]
[EventDate "2022.??.??"]
[TimeControl "60"]

{[%evp 18,77,86,75,86,62,179,193,215,123,204,177,195,223,205,188,192,177,295,
287,367,293,286,197,289,135,120,128,151,-43,0,0,79,61,381,412,395,420,412,410,
413,413,389,392,599,588,672,337,301,271,586,568,639,636,620,578,711,670,860,
762,686,635]} 1. d4 {[%emt 0:01:37]} Nf6 {[%emt 0:00:38]} 2. Nf3 {[%emt 0:00:
00]} e6 {[%emt 0:01:49]} 3. e3 {[%emt 0:00:28][%cal Ye2e3,Ye3d4,Yd4d5]} c5 {
[%emt 0:04:23]} 4. Bd3 {[%emt 0:00:08]} b6 {[%emt 0:02:25]} 5. O-O {[%emt 0:00:
08]} Bb7 {[%emt 0:00:02]} 6. c4 {[%emt 0:00:39]} Be7 {[%emt 0:00:54]} 7. Nc3 {
[%emt 0:00:05]} cxd4 {[%emt 0:00:13]} 8. exd4 {[%emt 0:00:07]} d6 {[%emt 0:00:
39]} 9. d5 {[%emt 0:06:39]} e5 {[%emt 0:00:11]} 10. Ng5 {[%emt 0:00:00] 10.Nh4
is the modern continuation.} Nbd7 {[%emt 0:08:56] E14: Queen's Indian:
Classical Variation (4 e3).} 11. f4 {[%emt 0:02:43]} g6 {[%emt 0:31:27] [#]} ({
Better is} 11... h6 $14) 12. Qf3 $146 {[%emt 0:06:09]} ({Predecessor:} 12. Nf3
exf4 13. Bxf4 O-O 14. Qd2 Re8 15. Rae1 Nh5 16. Bh6 Ndf6 17. Ng5 b5 18. Qf2 bxc4
19. Bxc4 Bf8 20. Rxe8 Qxe8 21. Bxf8 Qxf8 22. Qd4 {½-½ (22) Dittmar, P (2330)
-Naiditsch,A (2530) Bad Woerishofen 2002}) 12... a6 {[%emt 0:14:14] White is
clearly better.} 13. a4 {[%emt 0:09:08] Prevents b5.} (13. f5 $18) 13... O-O {
[%emt 0:11:58]} (13... Bc8 $16) 14. Qh3 $18 {[%emt 0:03:42]} exf4 {[%emt 0:10:
55]} 15. Bxf4 {[%emt 0:02:57]} (15. Rxf4 h5 $11) 15... h5 {[%emt 0:00:00]} 16.
Qg3 {[%emt 0:10:11][%cal Yg5e6]} Ng4 {[%emt 0:04:17]} 17. Nce4 {[%emt 0:01:58]}
Nde5 {[%emt 0:00:39]} (17... Bc8 {is a better defense.} 18. Be2 Nc5) 18. Be2 {
[%emt 0:01:30] And now Bxg4 would win.} Rc8 {[%emt 0:02:26]} 19. h3 {[%emt 0:
01:51]} Nf6 {[%emt 0:00:14]} 20. Bxe5 {[%emt 0:04:18]} dxe5 {[%emt 0:00:21]} (
20... Nxe4 $142 21. Nxe4 dxe5) 21. Qxe5 {[%emt 0:04:36]} ({Weaker is} 21. Nxf7
Kxf7 22. Ng5+ (22. Qxe5 Kg7 $16) (22. Nxf6 Bxf6 23. Bd3 Ke7 $11) 22... Kg8 $16)
(21. Nxf6+ $18 Bxf6 22. Ne6 (22. Nxf7 Kxf7 23. Bd3 Ke7 $11) 22... fxe6 23.
Qxg6+ Kh8 24. Qxh5+ Kg8 25. Qg6+ (25. Bd3 Qc7 $14) 25... Bg7 26. Bg4 (26. Qxe6+
Kh8 $18)) 21... Nxe4 $16 {[%emt 0:00:06]} 22. Nxe4 {[%emt 0:00:00][%cal Ya1a3]
Hoping for Ra3!} f5 {[%emt 0:00:11] [#]} 23. Nf2 {[%emt 0:00:00] White is much
more active.} (23. Qe6+ $1 $16 Kg7 {[#]} 24. Bxh5 $1 gxh5 25. Ng3 (25. Rxf5
Rxf5 26. Qxf5 Rxc4 $11) 25... Rxc4 26. Nxf5+ Rxf5 27. Rxf5 Bc5+ 28. Kh1) 23...
Bd6 {[%emt 0:01:14]} 24. Qe3 $36 {[%emt 0:00:30] White has good play.} Re8 {
[%emt 0:00:17]} (24... Kh7 $11 {keeps the balance.}) 25. Qh6 {[%emt 0:01:09]}
Bh2+ $2 {[%emt 0:03:16] Loses the game.} (25... Rc7 $1 $14) 26. Kxh2 $18 {
[%emt 0:03:19]} Qd6+ {[%emt 0:00:05]} 27. Kg1 {[%emt 0:00:53]} Rxe2 {[%emt 0:
00:08]} 28. Rae1 {[%emt 0:00:41]} Rce8 {[%emt 0:00:00]} 29. Rxe2 {[%emt 0:00:
19] The board is on fire.} Rxe2 {[%emt 0:00:04]} 30. Nd3 {[%emt 0:00:05]
Threatens to win with Rxf5.} Qg3 {[%emt 0:02:08]} (30... Bc8 $142 31. Nf4 Re7)
31. Nf4 {[%emt 0:00:41]} Rxb2 {[%emt 0:00:03]} 32. Qxg6+ {[%emt 0:02:17]} Qxg6
{[%emt 0:00:03]} 33. Nxg6 {[%emt 0:00:04] Endgame Strongly threatening Ne7+.
KRB-KRN} b5 $2 {[%emt 0:01:15]} (33... Kf7 {is tougher.}) 34. axb5 {[%emt 0:00:
27] White is clearly winning.} axb5 {[%emt 0:00:06]} 35. c5 {[%emt 0:00:17]
[%cal Yc4c5,Yc5c6]} Kf7 {[%emt 0:00:29]} 36. Nf4 {[%emt 0:03:47]} b4 {[%emt 0:
00:56]} 37. c6 {[%emt 0:00:00]} Ba6 {[%emt 0:00:08]} 38. Ra1 {[%emt 0:00:10]}
Bb5 {[%emt 0:00:44]} 39. Ra5 {[%emt 0:00:18] Weighted Error Value: White=0.45/
Black=0.64} 1-0

[Event "44th Chess Olympiad Open 2022"]
[Site "Chennai"]
[Date "2022.08.06"]
[Round "8.27"]
[White "Mwali, Chitumbo"]
[Black "Blomqvist, Erik"]
[Result "0-1"]
[WhiteElo "2320"]
[BlackElo "2521"]
[Annotator "TA"]
[PlyCount "42"]
[EventDate "2022.??.??"]
[TimeControl "60"]

{[%evp 11,42,-8,0,0,10,0,0,0,0,0,0,-68,-61,-172,-164,-167,-173,-165,-170,-172,
-170,-173,-173,-171,-171,-170,-165,-241,-240,-29991,-29992,-29992,-29989]} 1.
Nf3 {[%emt 0:00:23]} d5 {[%emt 0:00:08]} 2. c4 {[%emt 0:01:39]} d4 {[%emt 0:00:
00]} 3. g3 {[%emt 0:00:52]} Nc6 {[%emt 0:00:23]} 4. Bg2 {[%emt 0:00:38]} e5 {
[%emt 0:00:14]} 5. d3 {[%emt 0:00:57]} Nf6 {[%emt 0:00:27]} 6. O-O {[%emt 0:00:
00]} a5 {[%emt 0:01:01]} 7. e3 {[%emt 0:04:37] A09: Réti Opening: 1 Nf3 d5 2
c4.} Bc5 {[%emt 0:00:38]} 8. exd4 {[%emt 0:00:27]} Bxd4 {[%emt 0:00:17]} ({
Don't take} 8... exd4 9. Re1+ Kf8 10. Bf4 $16) 9. Nxd4 {[%emt 0:02:25] The
position is equal.} Nxd4 {[%emt 0:00:10]} 10. Re1 {[%emt 0:25:46]} O-O {
[%emt 0:00:37]} 11. Rxe5 {[%emt 0:06:14]} ({White should try} 11. h3 $11) 11...
Bg4 $15 {[%emt 0:00:34]} 12. f3 {[%emt 0:04:48] [#]} (12. Qd2 $1 $15) 12...
Nxf3+ $1 $19 {[%emt 0:01:56]} 13. Bxf3 {[%emt 0:02:39]} Qd4+ {[%emt 0:00:16]}
14. Re3 {[%emt 0:00:18] [#] Na3 is the strong threat.} Rae8 $1 {[%emt 0:00:53]}
15. Nc3 {[%emt 0:28:58][%cal Yg1g2] aiming for Kg2!} Rxe3 {[%emt 0:08:42]} 16.
Bxe3 {[%emt 0:00:03]} Qxe3+ {[%emt 0:00:10]} 17. Kg2 {[%emt 0:00:02] [#]} Rd8
$1 {[%emt 0:00:40][%cal Yf8d8,Yd8d3,Yd3d2]} 18. Bxg4 {[%emt 0:04:01] Black
must now prevent Be2.} Rxd3 {[%emt 0:01:11] [#]} 19. Qe1 $146 {[%emt 0:14:31]}
({Don't go for} 19. Qe2 $2 Rd2 20. Rd1 Rxe2+ 21. Bxe2 g6 $19) (19. Qf3 $142
Qd2+ 20. Qe2 Nxg4 21. Re1) ({Predecessor:} 19. Qf1 Nxg4 20. Re1 Rd2+ 21. Re2
Rxe2+ 22. Nxe2 Qe4+ 23. Kh3 Ne3 {0-1 (23) Gomes,M (2359)-Adhiban,B (2624) Pune
2014}) 19... Nxg4 {[%emt 0:01:54]} 20. Rc1 $2 {[%emt 0:00:31]} (20. Qxe3 $19
Nxe3+ 21. Kf2 Nxc4 22. Rc1) 20... Rd2+ {[%emt 0:00:00]} 21. Kh3 {[%emt 0:00:06]
} Nf2+ {[%emt 0:00:37] White did not feel at home in the position after the
opening. Weighted Error Value: White=0.62/ Black=0.01 (flawless)} 0-1

[Event "44th Chess Olympiad Open 2022"]
[Site "Chennai"]
[Date "2022.08.06"]
[Round "8.27"]
[White "Lungu, Nase"]
[Black "Berg, Emanuel"]
[Result "1-0"]
[WhiteElo "2216"]
[BlackElo "2533"]
[Annotator "TA"]
[PlyCount "64"]
[EventDate "2022.??.??"]
[TimeControl "60"]

{[%evp 9,64,67,62,75,66,60,73,77,71,81,85,83,84,83,79,90,91,96,106,95,94,100,
90,16,156,-31,-32,-41,-56,-39,-58,-43,-43,-47,-13,-10,-16,-29,-9,-10,-14,-24,
-19,-35,-40,-58,-8,-18,-17,-20,-22,-259,-263,-245,-41,-42,0]} 1. c4 {[%emt 0:
00:00]} e5 {[%emt 0:01:12]} 2. Nc3 {[%emt 0:00:15]} Nf6 {[%emt 0:00:35]} 3. Nf3
{[%emt 0:00:07]} e4 {[%emt 0:00:09]} 4. Ng5 {[%emt 0:02:23]} c6 {[%emt 0:00:08]
} 5. Ngxe4 {[%emt 0:02:16]} Nxe4 {[%emt 0:00:09]} 6. Nxe4 {[%emt 0:00:05] A22:
English Opening: 1...e5 2 Nc3 Nf6.} d5 {[%emt 0:00:05]} 7. cxd5 {[%emt 0:00:19]
} cxd5 {[%emt 0:00:07]} 8. Ng3 {[%emt 0:02:53][%cal Ye4g3,Yg3e2,Ye2c3] White
is better.} (8. Qa4+ $2 Bd7 9. Qd4 dxe4 10. Qxe4+ Be7 $19) 8... h5 {[%emt 0:00:
07] Hoping for ...h4.} 9. e3 {[%emt 0:00:33]} h4 {[%emt 0:00:15]} 10. Ne2 {
[%emt 0:00:33]} Nc6 {[%emt 0:03:00]} 11. d4 {[%emt 0:05:41] [#]} Bd6 $146 {
[%emt 0:26:15]} ({Predecessor:} 11... Bf5 12. Bd2 h3 13. Qb3 Qd7 14. Nf4 Bd6
15. Nxh3 O-O 16. Bd3 Bxh3 17. gxh3 Rac8 18. Qxd5 {½-½ (41) Ding,L (2806)
-Tari,A (2654) chess24.com INT 2022}) 12. Nc3 {[%emt 0:04:21]} Qg5 {[%emt 0:00:
00]} 13. Qb3 {[%emt 0:17:44]} O-O {[%emt 0:10:18][%cal Yh4h3]} 14. Qxd5 {
[%emt 0:01:10]} Qg6 {[%emt 0:00:29] And now ...Nb4 would win.} 15. a3 {[%emt 0:
00:00] Against Nb4} Rd8 {[%emt 0:10:27][%cal Yd6e5]} 16. Be2 {[%emt 0:07:05]} (
16. Qe4 $1 $16 {[%cal Re4g6]}) 16... h3 {[%emt 0:02:37]} (16... Be5 $1 $11 {
keeps the balance.} 17. Qf3 Bxd4) 17. gxh3 $2 {[%emt 0:09:00] [#]} (17. Bh5 $16
Qf5 18. gxh3) 17... Be5 $1 $15 {[%emt 0:03:26]} 18. Qf3 {[%emt 0:07:09] [#]} (
18. Qe4 Bf5) 18... Bxd4 {[%emt 0:00:06]} 19. Qg3 $1 {[%emt 0:00:09]} (19. e4
Ne5) 19... Bxc3+ {[%emt 0:01:19]} 20. bxc3 {[%emt 0:00:04]} Qc2 {[%emt 0:00:07]
} 21. e4 $1 {[%emt 0:06:38]} (21. Kf1 $2 Bf5 22. Rg1 Qxc3 $19) 21... Qxe4 {
[%emt 0:02:17]} (21... Rd1+ $5 22. Bxd1 Qxe4+ 23. Be2 Qxh1+ 24. Bf1 Qd5 $11)
22. Rg1 {[%emt 0:00:49][%csl Gg1][%cal Rg3g7]} g6 {[%emt 0:00:40]} 23. h4 {
[%emt 0:03:33]} Ne5 $40 {[%emt 0:07:29] Black has compensation. White needs to
defend precisely.} 24. Kf1 {[%emt 0:02:44]} Be6 {[%emt 0:01:11]} 25. f3 {
[%emt 0:05:25]} Qf5 {[%emt 0:03:42][%cal Yd8d3] Strongly threatening .. .Rd3!}
26. Bf4 {[%emt 0:04:28]} Nd3 {[%emt 0:01:58]} 27. Bg5 {[%emt 0:00:20]} Re8 {
[%emt 0:01:21]} ({Black should play} 27... f6 $15 28. Be3 Kf7) 28. h5 {[%emt 0:
01:00]} Bc4 {[%emt 0:02:45][%cal Ye8e2]} ({Much less strong is} 28... f6 29.
Be3 Qh3+ 30. Rg2 Qxg3 31. Rxg3 Bh3+ 32. Rxh3 $14) 29. hxg6 {[%emt 0:00:00]
Really sharp!} fxg6 {[%emt 0:00:02][%cal Ye8e2]} 30. Rg2 {[%emt 0:02:18] [#]} (
30. Bxd3 $11 {and White stays safe.} Bxd3+ 31. Kg2) 30... Rxe2 $1 $19 {[%emt 0:
00:24]} 31. Rxe2 {[%emt 0:01:37] [#] Threatens to win with Re4.} Ne5 $2 {
[%emt 0:00:13]} ({Black should try} 31... Nc5 $1 $19 {[%cal Rc5e4] aiming for .
..Ne4.} 32. Qg4 (32. Rae1 $2 Ne4 $19) 32... Qxg4 33. fxg4 Ne4) 32. Bf4 $1 $15 {
[%emt 0:01:31]} Re8 {[%emt 0:00:00] Weighted Error Value: White=0.31/Black=0.
18 (very precise) . Loss on time!?} (32... Nxf3 $5 33. Qxf3 Re8 $17) 1-0